bitfinex/quotes_BTCUSD_20230405
["timestamp","ask_amount","ask_price","bid_price","bid_amount"]
[1680728984243,0.33315643,28143.0,28142.0,1.13153882]
[1680728984452,0.33215643,28143.0,28142.0,1.12953882]
[1680728984656,0.33415643,28143.0,28142.0,1.13153882]
[1680728984948,0.33215643,28143.0,28142.0,1.001967]
[1680728985072,0.33215643,28143.0,28142.0,1.003967]
[1680728985073,0.33415643,28143.0,28142.0,1.003967]
[1680728986697,0.33415643,28143.0,28142.0,0.84411028]
[1680728987959,0.33394643,28143.0,28142.0,0.84423028]
[1680728988160,0.33394643,28143.0,28142.0,0.88687196]
[1680728993938,0.33394643,28143.0,28142.0,0.72267991]
[1680728994141,0.33415643,28143.0,28142.0,0.62249991]
[1680728994414,0.33415643,28143.0,28142.0,0.58989791]
[1680728994623,0.33415643,28143.0,28142.0,0.62683891]
[1680728995056,0.33415643,28143.0,28142.0,0.62671891]
[1680728995434,0.33415643,28143.0,28142.0,0.79678802]
[1680728997767,0.33215643,28143.0,28142.0,0.5826109]
[1680728999234,0.33415643,28143.0,28142.0,0.5846109]
[1680728999451,0.33215643,28143.0,28142.0,0.5826109]
[1680729000252,0.33415643,28143.0,28142.0,0.5846109]
[1680729001618,0.33415643,28143.0,28142.0,0.5833869]
[1680729002032,0.68967519,28143.0,28142.0,0.12954595]
[1680729002892,0.68767519,28143.0,28142.0,0.12754595]
[1680729003093,0.33415643,28143.0,28142.0,0.002]
[1680729003295,0.70220902,28143.0,28142.0,0.002]
[1680729003535,0.70020902,28143.0,28141.0,0.0217]
[1680729003753,0.03099,28142.0,28141.0,0.0217]
[1680729003866,0.0085,28142.0,28141.0,0.0217]
[1680729004064,0.0085,28142.0,28141.0,0.0233]
[1680729004555,0.45721801,28142.0,28141.0,0.0233]
[1680729004742,0.41326062,28142.0,28141.0,0.0233]
[1680729004958,0.41307862,28142.0,28141.0,0.0233]
[1680729005244,0.38903662,28142.0,28141.0,0.0253]
[1680729005482,0.38803662,28142.0,28141.0,0.0233]
[1680729005666,0.39003662,28142.0,28141.0,0.0233]
[1680729005911,0.38803662,28142.0,28141.0,0.0233]
[1680729007154,0.40303662,28142.0,28141.0,0.0233]
[1680729009727,0.44745475,28142.0,28141.0,0.0233]
[1680729012878,0.05962813,28142.0,28141.0,0.0233]
[1680729015400,0.05962813,28142.0,28141.0,0.0017]
[1680729015615,0.05941813,28142.0,28139.0,0.36697968]
[1680729015820,0.05941813,28142.0,28140.0,0.035397]
[1680729016031,0.05962813,28142.0,28140.0,0.035397]
[1680729016639,0.04462813,28142.0,28140.0,0.035397]
[1680729016876,0.04441813,28142.0,28140.0,0.135397]
[1680729017093,0.04462813,28142.0,28141.0,0.033786]
[1680729017302,0.04662813,28142.0,28141.0,0.033786]
[1680729017483,0.04462813,28142.0,28141.0,0.033786]
[1680729017639,0.05362813,28142.0,28141.0,0.033786]
[1680729017841,0.04462813,28142.0,28140.0,0.034919]
[1680729018044,0.05941813,28142.0,28140.0,0.034919]
[1680729018243,0.05962813,28142.0,28140.0,0.034919]
[1680729018475,0.05941813,28142.0,28140.0,0.034919]
[1680729019275,0.05941813,28142.0,28140.0,0.490119]
[1680729019473,0.05941813,28142.0,28141.0,0.03396]
[1680729019714,0.04441813,28142.0,28141.0,0.03396]
[1680729019918,0.05341813,28142.0,28141.0,0.03396]
[1680729020120,0.04441813,28142.0,28141.0,0.03396]
[1680729020297,0.05941813,28142.0,28141.0,0.03396]
[1680729021255,0.04441813,28142.0,28141.0,0.03396]
[1680729021458,0.04641813,28142.0,28141.0,0.002]
[1680729021661,0.04441813,28142.0,28140.0,0.3552]
[1680729022695,0.04641813,28142.0,28141.0,0.002]
[1680729022904,0.04441813,28142.0,28140.0,0.3552]
[1680729023105,0.04641813,28142.0,28140.0,0.3572]
[1680729025161,0.04641813,28142.0,28141.0,0.034121]
[1680729025592,0.04641813,28142.0,28140.0,0.3572]
[1680729025798,0.04441813,28142.0,28140.0,0.3552]
[1680729025981,0.04641813,28142.0,28141.0,0.002]
[1680729026430,0.04441813,28142.0,28140.0,0.3552]
[1680729026638,0.04441813,28142.0,28141.0,0.033535]
[1680729026639,0.04641813,28142.0,28141.0,0.033535]
[1680729027020,0.04441813,28142.0,28141.0,0.033535]
[1680729027229,0.04541813,28142.0,28141.0,0.035535]
[1680729027442,0.04541813,28142.0,28141.0,0.002]
[1680729028482,0.48172629,28142.0,28141.0,0.002]
[1680729028689,0.50675929,28142.0,28141.0,0.002]
[1680729028897,0.50654929,28142.0,28141.0,0.002]
[1680729029304,0.48172629,28142.0,28141.0,0.002]
[1680729029511,0.48072629,28142.0,28139.0,0.12754595]
[1680729029711,0.2875,28140.0,28139.0,0.12754595]
[1680729029914,0.2875,28140.0,28139.0,0.12766595]
[1680729030774,0.2885,28140.0,28139.0,0.12966595]
[1680729031005,0.70896675,28140.0,28139.0,0.12966595]
[1680729031216,0.74258975,28140.0,28139.0,0.00212]
[1680729031421,0.74258975,28140.0,28139.0,0.002]
[1680729032046,0.74158975,28140.0,28138.0,0.0217]
[1680729032240,0.74158975,28140.0,28139.0,0.002]
[1680729032241,0.71746675,28140.0,28139.0,0.002]
[1680729032498,0.74191675,28140.0,28138.0,0.0217]
[1680729032712,0.032752,28139.0,28138.0,0.0217]
[1680729033542,0.38247508,28139.0,28138.0,0.0217]
[1680729033750,0.40447508,28139.0,28138.0,0.0217]
[1680729034792,0.38247508,28139.0,28138.0,0.0217]
[1680729034995,0.39747508,28139.0,28138.0,0.0217]
[1680729035202,0.38247508,28139.0,28138.0,0.0217]
[1680729035417,0.40447508,28139.0,28138.0,0.0217]
[1680729035644,0.40447508,28139.0,28138.0,0.0302]
[1680729035645,0.38247508,28139.0,28138.0,0.0302]
[1680729035862,0.37322308,28139.0,28138.0,0.0302]
[1680729036084,0.35822308,28139.0,28138.0,0.0302]
[1680729036291,0.40401408,28139.0,28138.0,0.0302]
[1680729036494,0.38022308,28139.0,28138.0,0.0302]
[1680729037007,0.40405208,28139.0,28138.0,0.0302]
[1680729037220,0.40514508,28139.0,28138.0,0.0302]
[1680729038532,0.40535508,28139.0,28138.0,0.0302]
[1680729039374,0.40514508,28139.0,28138.0,0.0302]
[1680729040244,0.38022308,28139.0,28138.0,0.0302]
[1680729040667,0.5045856,28139.0,28138.0,0.0302]
[1680729040873,0.4825666,28139.0,28138.0,0.0302]
[1680729041104,0.5045666,28139.0,28138.0,0.0302]
[1680729042376,0.5045846,28139.0,28138.0,0.0302]
[1680729042577,0.5046566,28139.0,28138.0,0.0302]
[1680729042786,0.4802786,28139.0,28138.0,0.0302]
[1680729042966,0.5042786,28139.0,28138.0,0.0302]
[1680729043847,0.4802786,28139.0,28138.0,0.0302]
[1680729044452,0.38833843,28138.0,28134.0,0.27437218]
[1680729044663,0.38833843,28138.0,28135.0,0.00729893]
[1680729044664,0.38403843,28138.0,28135.0,0.00729893]
[1680729044909,0.38403843,28138.0,28136.0,0.0022]
[1680729045554,0.38503843,28138.0,28136.0,0.0022]
[1680729046426,0.001,28138.0,28136.0,0.3627934]
[1680729046654,0.001,28138.0,28137.0,0.033073]
[1680729047006,0.001,28138.0,28136.0,0.3629734]
[1680729048430,0.42926422,28139.0,28136.0,0.3629734]
[1680729048625,0.009,28138.0,28136.0,0.3629734]
[1680729052836,0.42556558,28138.0,28136.0,0.00826284]
[1680729053045,0.42556558,28138.0,28136.0,0.0022]
[1680729054824,0.35782074,28137.0,28136.0,0.0022]
[1680729055426,0.34393468,28137.0,28136.0,0.0022]
[1680729055625,0.3425887,28137.0,28136.0,0.0022]
[1680729055950,0.34251111,28137.0,28136.0,0.0022]
[1680729056123,0.35135532,28137.0,28136.0,0.0022]
[1680729056330,0.35111753,28137.0,28136.0,0.0022]
[1680729056657,0.35070469,28137.0,28136.0,0.0022]
[1680729056901,0.35052378,28137.0,28136.0,0.0022]
[1680729057019,0.35017753,28137.0,28136.0,0.0022]
[1680729057217,0.009,28137.0,28136.0,0.0245532]
[1680729059814,0.00879947,28137.0,28136.0,0.0245532]
[1680729060424,0.00879947,28137.0,28136.0,0.0022]
[1680729067965,0.00879947,28137.0,28136.0,0.12982655]
[1680729068232,0.00879947,28137.0,28136.0,0.0022]
[1680729068976,0.00879947,28137.0,28136.0,0.12982655]
[1680729069424,0.00879947,28137.0,28136.0,0.0022]
[1680729070419,0.00879947,28137.0,28136.0,0.14961314]
[1680729070631,0.00879947,28137.0,28136.0,0.18250914]
[1680729070811,0.00879947,28137.0,28136.0,0.14961314]
[1680729071896,0.00879947,28137.0,28136.0,0.18421414]
[1680729073144,0.00879947,28137.0,28136.0,0.14961314]
[1680729074426,0.00879947,28137.0,28136.0,0.19215656]
[1680729074860,0.00879947,28137.0,28136.0,0.44155217]
[1680729075073,0.00879947,28137.0,28136.0,0.60269868]
[1680729075293,0.00879947,28137.0,28136.0,0.41223954]
[1680729075764,0.00879947,28137.0,28136.0,0.41112728]
[1680729075977,0.00879947,28137.0,28136.0,0.49052156]
[1680729076201,0.00879947,28137.0,28136.0,0.51131399]
[1680729076467,0.00879947,28137.0,28136.0,0.86651399]
[1680729076681,0.00879947,28137.0,28136.0,0.84572156]
[1680729076889,0.00879947,28137.0,28136.0,1.14572156]
[1680729077112,0.00021,28143.0,28137.0,0.5]
[1680729077335,0.04949911,28144.0,28142.0,0.17032779]
[1680729077547,0.04970911,28144.0,28143.0,0.53358537]
[1680729077789,0.04970911,28144.0,28143.0,0.39168856]
[1680729078001,0.00021,28144.0,28143.0,0.39168856]
[1680729078651,0.09924462,28144.0,28143.0,0.39768856]
[1680729078863,0.09945462,28144.0,28143.0,0.39768856]
[1680729079309,0.09845462,28144.0,28143.0,0.39168856]
[1680729080796,0.09945462,28144.0,28143.0,0.40268856]
[1680729081217,0.09845462,28144.0,28143.0,0.39168856]
[1680729081430,0.10045462,28144.0,28143.0,0.40268856]
[1680729081670,0.10045462,28144.0,28143.0,0.39168856]
[1680729081671,0.09845462,28144.0,28143.0,0.39168856]
[1680729081898,0.09945462,28144.0,28143.0,0.40268856]
[1680729082104,0.09845462,28144.0,28143.0,0.41378393]
[1680729082312,0.10045462,28144.0,28143.0,0.47568393]
[1680729083569,0.09845462,28144.0,28143.0,0.46468393]
[1680729083775,0.09945462,28144.0,28143.0,0.47568393]
[1680729090429,0.43127294,28144.0,28143.0,0.0619]
[1680729090641,0.42277294,28144.0,28143.0,0.0619]
[1680729090849,0.42277294,28144.0,28143.0,0.096261]
[1680729092761,0.42277294,28144.0,28143.0,0.096103]
[1680729093615,0.42277294,28144.0,28143.0,0.0619]
[1680729093798,0.42277294,28144.0,28143.0,0.095321]
[1680729095142,0.09945462,28144.0,28143.0,0.095321]
[1680729095346,0.09924462,28144.0,28143.0,0.095321]
[1680729095751,0.09945462,28144.0,28143.0,0.095321]
[1680729096205,0.09945462,28144.0,28143.0,0.0619]
[1680729098240,0.09924462,28144.0,28143.0,0.0619]
[1680729098623,0.42866347,28144.0,28143.0,0.0619]
[1680729098830,0.42887347,28144.0,28143.0,0.0619]
[1680729101800,0.43737347,28144.0,28143.0,0.0619]
[1680729104006,0.09945462,28144.0,28143.0,0.0619]
[1680729104209,0.09924462,28144.0,28143.0,0.096318]
[1680729104442,0.09945462,28144.0,28143.0,0.096318]
[1680729104648,0.09924462,28144.0,28143.0,0.096318]
[1680729104845,0.09945462,28144.0,28143.0,0.096318]
[1680729105045,0.09945462,28144.0,28143.0,0.0619]
[1680729105281,0.09945462,28144.0,28143.0,0.095684]
[1680729105691,0.09945462,28144.0,28143.0,0.0619]
[1680729105872,0.09945462,28144.0,28143.0,0.096481]
[1680729106396,0.09924462,28144.0,28143.0,0.096481]
[1680729106596,0.09945462,28144.0,28143.0,0.096481]
[1680729107431,0.09945462,28144.0,28143.0,0.0619]
[1680729107629,0.09945462,28144.0,28143.0,0.095263]
[1680729107830,0.09945462,28144.0,28143.0,0.096085]
[1680729108056,0.09924462,28144.0,28143.0,0.096085]
[1680729108321,0.09924462,28144.0,28143.0,0.0619]
[1680729108846,0.09945462,28144.0,28143.0,0.0619]
[1680729110146,0.09945462,28144.0,28143.0,0.097646]
[1680729111222,0.09945462,28144.0,28143.0,0.0619]
[1680729111433,0.09945462,28144.0,28143.0,0.096547]
[1680729111639,0.09924462,28144.0,28143.0,0.0319]
[1680729111844,0.09924462,28144.0,28143.0,0.011]
[1680729112734,0.09924462,28144.0,28143.0,0.0488]
[1680729116886,0.09924462,28144.0,28143.0,0.10510147]
[1680729117920,0.09924462,28144.0,28143.0,0.20510147]
[1680729119663,0.09924462,28144.0,28143.0,0.33284569]
[1680729120295,0.10998943,28144.0,28143.0,0.37542926]
[1680729120508,0.10998943,28144.0,28143.0,0.4180112]
[1680729120765,0.10998943,28144.0,28143.0,0.58824832]
[1680729120984,0.10998943,28144.0,28143.0,0.37533859]
[1680729121625,0.10998943,28144.0,28143.0,0.4180112]
[1680729122695,0.10998943,28144.0,28143.0,0.3180112]
[1680729123401,0.24925805,28149.0,28147.0,0.4]
[1680729123623,0.23072932,28149.0,28148.0,0.79660737]
[1680729123849,0.23072932,28149.0,28148.0,0.78950956]
[1680729124072,0.18147127,28149.0,28148.0,1.14470956]
[1680729125407,0.18247127,28149.0,28148.0,1.16770956]
[1680729125617,0.18247127,28149.0,28148.0,1.18794665]
[1680729127382,0.18247127,28149.0,28148.0,1.22324438]
[1680729127804,0.18247127,28149.0,28148.0,1.22318438]
[1680729128224,0.18247127,28149.0,28148.0,1.43543139]
[1680729130279,0.18247127,28149.0,28148.0,1.4151943]
[1680729130701,0.18247127,28149.0,28148.0,1.43768789]
[1680729131333,0.18247127,28149.0,28148.0,1.4151943]
[1680729131544,0.18247127,28149.0,28148.0,1.43759276]
[1680729132167,0.18247127,28149.0,28148.0,1.60718539]
[1680729132589,0.18247127,28149.0,28148.0,1.4151943]
[1680729133003,0.18247127,28149.0,28148.0,1.43206987]
[1680729133213,0.18247127,28149.0,28148.0,1.4151943]
[1680729133420,0.18247127,28149.0,28148.0,1.43651741]
[1680729133634,0.18247127,28149.0,28148.0,1.58476913]
[1680729134254,0.18247127,28149.0,28148.0,1.37258212]
[1680729134459,0.18247127,28149.0,28148.0,1.39312619]
[1680729134607,0.18247127,28149.0,28148.0,1.21288999]
[1680729135573,0.18247127,28149.0,28148.0,1.19234592]
[1680729136164,0.18247127,28149.0,28148.0,1.31945633]
[1680729136293,0.18247127,28149.0,28148.0,1.33923041]
[1680729137449,0.18247127,28149.0,28148.0,1.31945633]
[1680729137677,0.18247127,28149.0,28148.0,1.3403274]
[1680729137888,0.18247127,28149.0,28148.0,1.16936021]
[1680729138315,0.18247127,28149.0,28148.0,1.36996592]
[1680729138576,0.00021,28151.0,28150.0,0.434034]
[1680729138789,0.04943232,28154.0,28153.0,0.4]
[1680729139021,0.02402001,28157.0,28153.0,1.49253621]
[1680729139022,0.00021,28156.0,28153.0,1.49253621]
[1680729139249,0.02408001,28157.0,28154.0,0.68894156]
[1680729139463,0.02408001,28157.0,28155.0,0.134474]
[1680729139682,0.02408001,28157.0,28156.0,0.38798856]
[1680729139896,0.02387001,28157.0,28156.0,1.04318856]
[1680729140528,0.08662651,28157.0,28156.0,1.04318856]
[1680729140741,0.08662651,28157.0,28156.0,1.0634324]
[1680729140950,0.08683651,28157.0,28156.0,1.0634324]
[1680729141193,0.08662651,28157.0,28156.0,1.06338018]
[1680729141443,0.08662651,28157.0,28156.0,1.44318856]
[1680729142548,0.02387001,28157.0,28156.0,1.44318856]
[1680729143206,0.02387001,28157.0,28156.0,1.46300702]
[1680729143645,0.02387001,28157.0,28156.0,1.49100702]
[1680729143865,0.02387001,28158.0,28156.0,1.47130856]
[1680729144082,0.02387001,28158.0,28157.0,0.90118356]
[1680729144300,0.02387001,28158.0,28157.0,1.35638356]
[1680729145591,0.02387001,28158.0,28157.0,1.35650356]
[1680729145797,0.02387001,28158.0,28157.0,1.38450356]
[1680729146004,0.02387001,28158.0,28157.0,1.35650356]
[1680729146494,0.02387001,28158.0,28157.0,1.38450356]
[1680729146916,0.02387001,28158.0,28157.0,1.38438356]
[1680729147133,0.02387001,28158.0,28157.0,1.35638356]
[1680729147801,0.02387001,28158.0,28157.0,1.10246641]
[1680729147991,0.02387001,28158.0,28157.0,1.20246641]
[1680729148203,0.02387001,28158.0,28157.0,1.23046641]
[1680729149083,0.02387001,28158.0,28157.0,1.20683356]
[1680729149913,0.02387001,28158.0,28157.0,1.38439356]
[1680729152209,0.02387001,28158.0,28157.0,1.38438356]
[1680729152411,0.02387001,28158.0,28157.0,1.38450356]
[1680729152746,0.02387001,28158.0,28157.0,1.38444356]
[1680729152973,0.02387001,28158.0,28157.0,1.38438356]
[1680729154921,0.02387001,28158.0,28157.0,1.35638356]
[1680729155175,0.02387001,28158.0,28157.0,1.38438356]
[1680729156394,0.02387001,28158.0,28157.0,1.35638356]
[1680729157029,0.02387001,28158.0,28157.0,1.38438356]
[1680729158713,0.02387001,28158.0,28157.0,1.35638356]
[1680729158888,0.02387001,28158.0,28157.0,1.38438356]
[1680729159448,0.02387001,28158.0,28157.0,1.38450356]
[1680729159662,0.02387001,28158.0,28157.0,1.38451356]
[1680729160361,0.02387001,28158.0,28157.0,1.38439356]
[1680729161168,0.02387001,28158.0,28157.0,1.41978356]
[1680729162076,1e-08,28158.0,28157.0,1.41978356]
[1680729162240,1e-08,28158.0,28157.0,1.40953903]
[1680729162414,1e-08,28158.0,28157.0,1.43753903]
[1680729162641,0.07302932,28163.0,28162.0,0.4]
[1680729162845,0.07302932,28163.0,28162.0,1.07411737]
[1680729163053,0.02387001,28163.0,28162.0,1.65651156]
[1680729164301,0.02387001,28163.0,28162.0,1.68451156]
[1680729165150,0.02387001,28163.0,28162.0,1.65652156]
[1680729165354,0.02387001,28163.0,28162.0,1.68452156]
[1680729167526,0.02387001,28163.0,28162.0,1.52906941]
[1680729167773,0.02387001,28163.0,28162.0,1.52924941]
[1680729168622,0.02387001,28163.0,28162.0,1.50124941]
[1680729168830,0.02387001,28163.0,28162.0,1.52924941]
[1680729169306,0.02387001,28163.0,28162.0,1.52918941]
[1680729169519,0.02387001,28163.0,28162.0,1.49374141]
[1680729169729,0.02387001,28163.0,28162.0,1.46574141]
[1680729169916,0.02387001,28163.0,28162.0,1.46179214]
[1680729170159,0.02387001,28163.0,28162.0,1.46161214]
[1680729170371,0.02387001,28163.0,28162.0,1.44349356]
[1680729170785,0.02387001,28163.0,28162.0,1.46262684]
[1680729171010,0.02387001,28163.0,28162.0,1.49062684]
[1680729171221,0.02387001,28163.0,28162.0,1.44349356]
[1680729171456,0.02387001,28163.0,28162.0,1.49227851]
[1680729172107,0.02387001,28163.0,28162.0,1.46427851]
[1680729172459,0.02387001,28163.0,28162.0,1.47149356]
[1680729172692,0.02387001,28163.0,28162.0,1.46380136]
[1680729172879,0.02387001,28163.0,28162.0,1.46398136]
[1680729173656,0.02387001,28163.0,28162.0,1.49198136]
[1680729174016,0.02387001,28163.0,28162.0,1.46398136]
[1680729174245,0.02387001,28163.0,28162.0,1.49198136]
[1680729174470,0.02387001,28163.0,28162.0,1.46398136]
[1680729174682,0.02387001,28163.0,28162.0,1.49198136]
[1680729176587,0.02387001,28163.0,28162.0,1.46398136]
[1680729177025,0.02387001,28163.0,28162.0,1.49198136]
[1680729177227,0.02387001,28163.0,28162.0,1.46398136]
[1680729177429,0.02387001,28163.0,28162.0,1.49198136]
[1680729177840,0.02387001,28163.0,28162.0,1.57658269]
[1680729178397,0.02387001,28163.0,28162.0,1.66140904]
[1680729178725,0.02387001,28163.0,28162.0,1.61911978]
[1680729179696,0.02387001,28163.0,28162.0,1.59111978]
[1680729179950,0.02387001,28163.0,28162.0,1.61911978]
[1680729180119,0.02387001,28163.0,28162.0,1.63340904]
[1680729180325,0.02387001,28163.0,28162.0,1.66140904]
[1680729180928,0.02387001,28163.0,28162.0,1.66122904]
[1680729181182,0.02387001,28163.0,28162.0,1.66140904]
[1680729181787,0.02387001,28163.0,28162.0,1.63340904]
[1680729182190,0.02387001,28163.0,28162.0,1.84519692]
[1680729182397,0.02387001,28163.0,28162.0,1.67576924]
[1680729182840,0.02387001,28163.0,28162.0,1.70358924]
[1680729183042,0.02387001,28163.0,28162.0,1.30358924]
[1680729183581,0.02387001,28163.0,28162.0,1.47327555]
[1680729183789,0.02387001,28163.0,28162.0,1.27558924]
[1680729183989,0.02387001,28163.0,28162.0,1.30358924]
[1680729184258,0.02387001,28163.0,28162.0,1.09180136]
[1680729185745,0.02387001,28163.0,28162.0,1.19180136]
[1680729186163,0.02387001,28163.0,28162.0,1.16380136]
[1680729186783,0.02387001,28163.0,28162.0,1.19180136]
[1680729191470,0.02387001,28163.0,28162.0,1.19192136]
[1680729192159,0.02387001,28163.0,28162.0,1.19180136]
[1680729192806,0.02387001,28163.0,28162.0,1.16380136]
[1680729193025,0.02387001,28163.0,28162.0,1.19180136]
[1680729194725,0.02387001,28163.0,28162.0,1.16380136]
[1680729194933,0.02387001,28163.0,28162.0,1.19180136]
[1680729195493,0.02387001,28163.0,28162.0,1.19192136]
[1680729195720,0.02387001,28163.0,28162.0,1.16386136]
[1680729195939,0.02387001,28163.0,28162.0,1.19180136]
[1680729196721,0.02387001,28163.0,28162.0,1.16380136]
[1680729196908,0.02387001,28163.0,28162.0,1.41879117]
[1680729197108,0.02387001,28163.0,28162.0,1.44679117]
[1680729197984,0.02387001,28163.0,28162.0,1.19180136]
[1680729198162,0.02387001,28163.0,28162.0,1.41879117]
[1680729198366,0.02387001,28163.0,28162.0,1.44679117]
[1680729199741,0.02387001,28163.0,28162.0,1.41879117]
[1680729199941,0.02387001,28163.0,28162.0,1.44679117]
[1680729200777,0.02387001,28163.0,28162.0,1.84679117]
[1680729201616,0.02387001,28164.0,28162.0,1.57149356]
[1680729201844,0.02398,28165.0,28163.0,0.86729656]
[1680729202061,0.0497488,28168.0,28165.0,0.1]
[1680729202272,0.0497488,28168.0,28166.0,0.42351256]
[1680729202492,0.02387001,28169.0,28167.0,0.035028]
[1680729202708,0.02387001,28169.0,28168.0,0.9147075]
[1680729202915,0.02387001,28169.0,28168.0,1.6036505]
[1680729203179,0.02387001,28169.0,28168.0,1.66144103]
[1680729203383,0.02387001,28169.0,28168.0,1.4680918]
[1680729203808,0.02387001,28169.0,28168.0,1.4900918]
[1680729204015,0.02387001,28169.0,28168.0,1.4680918]
[1680729204245,0.02387001,28169.0,28168.0,1.36109146]
[1680729204728,0.02387001,28169.0,28168.0,1.00589146]
[1680729205274,0.02387001,28169.0,28168.0,1.17586854]
[1680729206142,0.02387001,28169.0,28168.0,1.00589146]
[1680729207119,0.02387001,28169.0,28168.0,1.04170014]
[1680729208136,0.02387001,28169.0,28168.0,1.01370014]
[1680729209611,0.02387001,28169.0,28168.0,1.04170014]
[1680729209821,0.02387001,28169.0,28168.0,1.01370014]
[1680729210020,0.02387001,28169.0,28168.0,1.04170014]
[1680729210221,0.02387001,28169.0,28168.0,1.01370014]
[1680729210577,0.02387001,28169.0,28168.0,1.04170014]
[1680729212290,0.02387001,28169.0,28168.0,1.39690014]
[1680729212499,0.02387001,28169.0,28168.0,1.16525277]
[1680729212694,0.02387001,28171.0,28168.0,1.18300824]
[1680729212927,0.02387001,28171.0,28170.0,0.21249857]
[1680729213094,0.02387001,28171.0,28170.0,0.90048313]
[1680729213302,1e-08,28171.0,28170.0,1.11792594]
[1680729213519,0.04915791,28176.0,28171.0,0.1]
[1680729213838,0.02387001,28177.0,28175.0,0.21240029]
[1680729214009,0.02387001,28177.0,28176.0,0.68758356]
[1680729214211,0.02387001,28177.0,28176.0,0.91444049]
[1680729214445,0.02387001,28177.0,28176.0,0.77254368]
[1680729214693,0.02387001,28177.0,28176.0,1.18553421]
[1680729215273,0.02387001,28177.0,28176.0,1.10057409]
[1680729215629,0.02387001,28177.0,28176.0,0.74537409]
[1680729216068,0.02387001,28177.0,28176.0,0.76476473]
[1680729216278,0.02387001,28177.0,28176.0,0.78676473]
[1680729216687,0.07156489,28177.0,28176.0,0.78676473]
[1680729217539,0.02387001,28177.0,28176.0,0.78676473]
[1680729218606,0.07156489,28177.0,28176.0,0.79825705]
[1680729218821,0.07156489,28177.0,28176.0,0.82619705]
[1680729219422,0.07156489,28177.0,28176.0,0.92619705]
[1680729219658,0.07156489,28177.0,28176.0,0.82619705]
[1680729221545,0.02387001,28177.0,28176.0,0.82619705]
[1680729224424,0.02387001,28177.0,28176.0,0.92619705]
[1680729224862,0.02387001,28177.0,28176.0,0.82619705]
[1680729228346,0.02387001,28177.0,28176.0,0.82631705]
[1680729228567,0.02387001,28177.0,28176.0,0.82619705]
[1680729229429,0.02387001,28177.0,28176.0,0.79819705]
[1680729229636,0.02387001,28177.0,28176.0,0.92019705]
[1680729229857,0.02387001,28177.0,28176.0,0.79819705]
[1680729230106,0.02387001,28177.0,28176.0,0.82619705]
[1680729230322,0.02387001,28177.0,28176.0,0.89819705]
[1680729230505,0.02387001,28177.0,28176.0,0.82619705]
[1680729230717,0.02387001,28177.0,28176.0,0.92619705]
[1680729231772,0.02387001,28177.0,28176.0,1.28139705]
[1680729232214,0.02387001,28177.0,28176.0,1.26200641]
[1680729232428,0.02387001,28177.0,28176.0,1.23400641]
[1680729232638,0.02387001,28177.0,28176.0,1.26200641]
[1680729232639,1e-08,28177.0,28176.0,1.26200641]
[1680729232853,1e-08,28177.0,28176.0,1.21896653]
[1680729233054,1e-08,28177.0,28176.0,1.16200641]
[1680729233263,1e-08,28177.0,28176.0,1.18505495]
[1680729233473,1e-08,28177.0,28176.0,1.13400641]
[1680729233707,1e-08,28177.0,28176.0,1.18232666]
[1680729234534,1e-08,28177.0,28176.0,1.21896653]
[1680729234739,1e-08,28177.0,28176.0,1.24244793]
[1680729235371,1e-08,28177.0,28176.0,1.18548781]
[1680729238278,1e-08,28177.0,28176.0,1.15748781]
[1680729238486,1e-08,28177.0,28176.0,1.18548781]
[1680729238904,1e-08,28177.0,28176.0,1.21348781]
[1680729239077,1e-08,28177.0,28176.0,1.15748781]
[1680729239494,1e-08,28177.0,28176.0,1.18548781]
[1680729240146,1e-08,28177.0,28176.0,1.15748781]
[1680729240363,1e-08,28177.0,28176.0,1.3698881]
[1680729240568,1e-08,28177.0,28176.0,1.24244793]
[1680729240969,1e-08,28177.0,28176.0,1.10199324]
[1680729241173,1e-08,28177.0,28176.0,1.22486241]
[1680729241641,1e-08,28177.0,28176.0,1.12542224]
[1680729243258,1e-08,28177.0,28176.0,1.25286241]
[1680729243424,1e-08,28177.0,28176.0,1.12542224]
[1680729243630,1e-08,28177.0,28176.0,1.25286241]
[1680729244046,1e-08,28177.0,28176.0,1.12542224]
[1680729244658,1e-08,28177.0,28176.0,1.09742224]
[1680729244882,1e-08,28177.0,28176.0,1.12542224]
[1680729245127,1e-08,28177.0,28176.0,1.09742224]
[1680729245330,1e-08,28177.0,28176.0,1.25286241]
[1680729245846,1e-08,28177.0,28176.0,1.22938101]
[1680729246055,1e-08,28177.0,28176.0,1.22918911]
[1680729246269,1e-08,28177.0,28176.0,1.10174894]
[1680729246491,0.43139156,28177.0,28176.0,0.39183838]
[1680729246703,0.00021001,28177.0,28176.0,0.27907016]
[1680729246914,1e-08,28177.0,28176.0,0.27907016]
[1680729247324,1e-08,28177.0,28176.0,0.36383838]
[1680729247645,1e-08,28177.0,28176.0,0.39183838]
[1680729250988,1e-08,28177.0,28176.0,0.39195838]
[1680729252588,1e-08,28177.0,28176.0,0.39183838]
[1680729254503,1e-08,28177.0,28176.0,0.85340652]
[1680729254715,1e-08,28177.0,28176.0,1.20860652]
[1680729254924,1e-08,28177.0,28176.0,1.25108658]
[1680729255347,1e-08,28177.0,28176.0,1.03868629]
[1680729255969,1e-08,28177.0,28176.0,1.25089249]
[1680729256580,1e-08,28177.0,28176.0,1.22289249]
[1680729256818,1e-08,28177.0,28176.0,1.25089249]
[1680729257034,1e-08,28177.0,28176.0,1.22289249]
[1680729257256,1e-08,28177.0,28176.0,1.03868629]
[1680729258427,1e-08,28177.0,28176.0,1.01068629]
[1680729259301,1e-08,28177.0,28176.0,1.03868629]
[1680729259501,0.01551029,28181.0,28176.0,0.98910072]
[1680729259719,0.0085,28180.0,28179.0,0.12741947]
[1680729259915,0.0085,28180.0,28179.0,0.15137847]
[1680729260134,0.0085,28180.0,28179.0,0.22170138]
[1680729260578,0.05582266,28180.0,28179.0,0.22170138]
[1680729260775,0.05582266,28180.0,28179.0,0.24970138]
[1680729261612,0.05582266,28180.0,28179.0,0.33464859]
[1680729262239,0.05582266,28180.0,28179.0,0.35758804]
[1680729262779,0.05136176,28180.0,28179.0,0.35758804]
[1680729262982,0.04732266,28180.0,28179.0,0.35758804]
[1680729264051,0.04732266,28180.0,28179.0,0.27264083]
[1680729264982,0.04732266,28180.0,28179.0,0.59935139]
[1680729265206,0.04732266,28180.0,28179.0,0.98255139]
[1680729265442,0.04732266,28180.0,28179.0,0.95455139]
[1680729265655,0.04732266,28180.0,28179.0,0.98267139]
[1680729266807,0.04732266,28180.0,28179.0,0.98255139]
[1680729268091,0.04732266,28180.0,28179.0,0.95455139]
[1680729268296,0.04732266,28180.0,28179.0,0.98255139]
[1680729268506,0.01551029,28181.0,28179.0,0.98255139]
[1680729268713,0.01551029,28181.0,28180.0,0.10999247]
[1680729269135,0.01551029,28181.0,28180.0,0.16905112]